fUST/lending_fUST_20250705
["ID","MTS","AMOUNT","RATE_DAILY","PERIOD"]
[369630682,1751659847479,-169.166667,0.00019297,2]
[369630684,1751659847489,-166.529363,0.00019329,2]
[369630686,1751659847498,-166.529363,0.00019329,2]
[369630688,1751659847507,-199.677823,0.00019329,2]
[369630689,1751659847516,-151.0,0.00019329,2]
[369630690,1751659847526,-151.0,0.00019329,2]
[369630691,1751659847536,-153.808553,0.00019329,2]
[369630692,1751659847545,-151.0,0.00019329,2]
[369630693,1751659847554,-100000.0,0.00019329,2]
[369630694,1751659847563,-960.0,0.00019414,2]
[369630695,1751659847572,-460.0,0.00019452,2]
[369630696,1751659847583,-201.60533388,0.00019499,2]
[369630697,1751659847592,-2000.0,0.000195,2]
[369630698,1751659847602,-2000.0,0.000195,2]
[369630699,1751659847611,-151.0,0.000195,2]
[369630700,1751659847620,-151.0,0.000195,2]
[369630701,1751659847630,-54819.5318043,0.000195,2]
[369630702,1751659847643,-300.01975982,0.000195,2]
[369630703,1751659847655,-6225.39041383,0.000195,2]
[369630716,1751660098869,300.67450913,0.00027397,120]
[369630718,1751660191709,311.62915,0.00013699,2]
[369630767,1751661032303,-300.0,0.00015436,2]
[369630768,1751661032313,-1200.0,0.00015436,2]
[369630769,1751661032323,-215.52,0.00015437,2]
[369630770,1751661032362,-4299.525,0.00015437,2]
[369630771,1751661032374,-5407.0131587,0.00015437,2]
[369630829,1751661038157,-2117.24842784,0.00015437,2]
[369630830,1751661038269,-12860.69341346,0.00015437,2]
[369630831,1751661038279,-315.32117968,0.00016338,2]
[369630832,1751661038287,-696.86386996,0.00016338,2]
[369630833,1751661038296,-651.0197672,0.00016437,2]
[369630834,1751661038306,-615.33596418,0.00016437,2]
[369630835,1751661038315,-152.11638954,0.00016437,2]
[369630836,1751661038325,-460.0,0.00016438,2]
[369630837,1751661038334,-460.0,0.00016438,2]
[369630838,1751661038344,-587.46733646,0.00016438,2]
[369630850,1751661038511,-492.95,0.00016438,2]
[369630851,1751661038521,-460.0,0.00016438,2]
[369630852,1751661038531,-460.0,0.00016438,2]
[369630854,1751661038541,-460.0,0.00016438,2]
[369630855,1751661038550,-460.0,0.00016438,2]
[369630856,1751661038559,-460.0,0.00016438,2]
[369630857,1751661038568,-460.0,0.00016438,2]
[369630858,1751661038578,-460.0,0.00016438,2]
[369630859,1751661038587,-460.0,0.00016438,2]
[369630861,1751661038597,-460.0,0.00016438,2]
[369630862,1751661038606,-487.68893427,0.00016438,2]
[369630863,1751661038615,-460.0,0.00016438,2]
[369630864,1751661038624,-460.0,0.00016438,2]
[369630865,1751661038634,-460.0,0.00016438,2]
[369630866,1751661038643,-460.0,0.00016438,2]
[369630867,1751661038653,-536.66,0.00016438,2]
[369630869,1751661038662,-342.54928397,0.00016438,2]
[369630871,1751661038672,-460.0,0.00016438,2]
[369630872,1751661038681,-460.0,0.00016438,2]
[369630873,1751661038691,-460.0,0.00016438,2]
[369630874,1751661038700,-460.0,0.00016438,2]
[369630875,1751661038710,-216.22135587,0.00016438,2]
[369630876,1751661038719,-460.0,0.00016438,2]
[369630877,1751661038729,-460.0,0.00016438,2]
[369630878,1751661038738,-460.0,0.00016438,2]
[369630879,1751661038748,-460.0,0.00016438,2]
[369630880,1751661038757,-460.0,0.00016438,2]
[369630881,1751661038766,-460.0,0.00016438,2]
[369630882,1751661038775,-460.0,0.00016438,2]
[369630883,1751661038784,-460.0,0.00016438,2]
[369630884,1751661038794,-360.0,0.00016438,2]
[369630885,1751661038804,-460.0,0.00016438,2]
[369630886,1751661038814,-460.0,0.00016438,2]
[369630887,1751661038824,-460.0,0.00016438,2]
[369630888,1751661038833,-484.49377865,0.00016438,2]
[369630889,1751661038842,-395.01649157,0.00016438,2]
[369630890,1751661038852,-271.6453915,0.00016438,2]
[369630891,1751661038861,-460.0,0.00016438,2]
[369630892,1751661038871,-371.08590493,0.00016438,2]
[369630893,1751661038880,-460.0,0.00016438,2]
[369630894,1751661038890,-460.0,0.00016438,2]
[369630895,1751661038899,-460.0,0.00016438,2]
[369630896,1751661038909,-542.85,0.00016438,2]
[369630897,1751661038919,-460.0,0.00016438,2]
[369630898,1751661038928,-460.0,0.00016438,2]
[369630899,1751661038937,-460.0,0.00016438,2]
[369630900,1751661038947,-460.0,0.00016438,2]
[369630901,1751661038957,-607.61144704,0.00016438,2]
[369630902,1751661038966,-460.0,0.00016438,2]
[369630903,1751661038975,-460.0,0.00016438,2]
[369630904,1751661038985,-460.0,0.00016438,2]
[369630905,1751661038995,-460.0,0.00016438,2]
[369630906,1751661039004,-460.0,0.00016438,2]
[369630907,1751661039017,-460.0,0.00016438,2]
[369630908,1751661039027,-460.0,0.00016438,2]
[369630909,1751661039036,-460.0,0.00016438,2]
[369630910,1751661039045,-460.0,0.00016438,2]
[369630911,1751661039055,-594.16,0.00016438,2]
[369630912,1751661039065,-460.0,0.00016438,2]
[369630913,1751661039075,-460.0,0.00016438,2]
[369630914,1751661039085,-502.62,0.00016438,2]
[369630915,1751661039095,-460.0,0.00016438,2]
[369630916,1751661039105,-460.0,0.00016438,2]
[369630917,1751661039114,-460.0,0.00016438,2]
[369630918,1751661039124,-467.81794588,0.00016438,2]
[369630919,1751661039133,-481.32,0.00016438,2]
[369630920,1751661039143,-460.0,0.00016438,2]
[369630921,1751661039152,-460.0,0.00016438,2]
[369630922,1751661039161,-460.0,0.00016438,2]
[369630923,1751661039170,-460.0,0.00016438,2]
[369630924,1751661039179,-156.77223787,0.00016438,2]
[369630925,1751661039188,-460.0,0.00016438,2]
[369630926,1751661039198,-460.0,0.00016438,2]
[369630927,1751661039207,-488.800053,0.00016438,2]
[369630928,1751661039216,-460.0,0.00016438,2]
[369630929,1751661039226,-460.0,0.00016438,2]
[369630930,1751661039235,-460.0,0.00016438,2]
[369630931,1751661039244,-500.49937775,0.00016438,2]
[369630932,1751661039254,-546.54,0.00016438,2]
[369630933,1751661039264,-460.0,0.00016438,2]
[369630934,1751661039273,-460.0,0.00016438,2]
[369630935,1751661039282,-460.0,0.00016438,2]
[369630936,1751661039291,-564.19,0.00016438,2]
[369630937,1751661039300,-556.36,0.00016438,2]
[369630938,1751661039309,-460.0,0.00016438,2]
[369630939,1751661039319,-460.0,0.00016438,2]
[369630940,1751661039328,-460.0,0.00016438,2]
[369630941,1751661039337,-460.0,0.00016438,2]
[369630942,1751661039346,-460.0,0.00016438,2]
[369630943,1751661039356,-460.0,0.00016438,2]
[369630944,1751661039365,-460.0,0.00016438,2]
[369630945,1751661039375,-366.58357843,0.00016438,2]
[369630946,1751661039384,-460.0,0.00016438,2]
[369630947,1751661039394,-460.0,0.00016438,2]
[369630948,1751661039404,-460.0,0.00016438,2]
[369630949,1751661039413,-460.0,0.00016438,2]
[369630950,1751661039423,-460.0,0.00016438,2]
[369630951,1751661039433,-460.0,0.00016438,2]
[369630952,1751661039442,-560.95,0.00016438,2]
[369630953,1751661039452,-460.0,0.00016438,2]
[369630954,1751661039462,-460.0,0.00016438,2]
[369630955,1751661039471,-265.25136343,0.00016438,2]
[369630956,1751661039481,-517.25,0.00016438,2]
[369630957,1751661039490,-460.0,0.00016438,2]
[369630958,1751661039500,-460.0,0.00016438,2]
[369630959,1751661039509,-495.97,0.00016438,2]
[369630960,1751661039518,-460.0,0.00016438,2]
[369630961,1751661039528,-460.0,0.00016438,2]
[369630962,1751661039537,-460.0,0.00016438,2]
[369630963,1751661039546,-542.84,0.00016438,2]
[369630964,1751661039555,-460.0,0.00016438,2]
[369630965,1751661039565,-460.0,0.00016438,2]
[369630966,1751661039574,-460.0,0.00016438,2]
[369630967,1751661039583,-460.0,0.00016438,2]
[369630968,1751661039593,-460.81991153,0.00016438,2]
[369630969,1751661039602,-496.54,0.00016438,2]
[369630970,1751661039612,-460.0,0.00016438,2]
[369630971,1751661039621,-460.0,0.00016438,2]
[369630972,1751661039630,-473.78356007,0.00016438,2]
[369630973,1751661039639,-460.0,0.00016438,2]
[369630974,1751661039648,-536.66,0.00016438,2]
[369630975,1751661039657,-460.0,0.00016438,2]
[369630976,1751661039666,-460.0,0.00016438,2]
[369630977,1751661039676,-474.17,0.00016438,2]
[369630978,1751661039686,-460.0,0.00016438,2]
[369630979,1751661039695,-558.81,0.00016438,2]
[369630980,1751661039705,-460.0,0.00016438,2]
[369630981,1751661039715,-460.0,0.00016438,2]
[369630982,1751661039726,-460.0,0.00016438,2]
[369630983,1751661039736,-460.0,0.00016438,2]
[369630984,1751661039745,-500.0,0.00016438,2]
[369630985,1751661039755,-460.0,0.00016438,2]
[369630986,1751661039764,-460.0,0.00016438,2]
[369630987,1751661039773,-460.0,0.00016438,2]
[369630988,1751661039783,-460.0,0.00016438,2]
[369630990,1751661039792,-460.0,0.00016438,2]
[369630991,1751661039801,-460.0,0.00016438,2]
[369630993,1751661039810,-460.0,0.00016438,2]
[369630994,1751661039819,-460.0,0.00016438,2]
[369630995,1751661039828,-460.0,0.00016438,2]
[369630996,1751661039838,-460.0,0.00016438,2]
[369630997,1751661039847,-460.0,0.00016438,2]
[369630998,1751661039856,-460.0,0.00016438,2]
[369630999,1751661039866,-460.0,0.00016438,2]
[369631000,1751661039875,-460.0,0.00016438,2]
[369631001,1751661039884,-460.0,0.00016438,2]
[369631002,1751661039893,-460.0,0.00016438,2]
[369631003,1751661039902,-460.0,0.00016438,2]
[369631005,1751661039911,-460.0,0.00016438,2]
[369631007,1751661039921,-460.0,0.00016438,2]
[369631008,1751661039930,-460.0,0.00016438,2]
[369631009,1751661039940,-460.0,0.00016438,2]
[369631010,1751661039949,-407.34190061,0.00016438,2]
[369631011,1751661039958,-460.0,0.00016438,2]
[369631012,1751661039968,-460.0,0.00016438,2]
[369631013,1751661039977,-460.0,0.00016438,2]
[369631014,1751661039987,-460.0,0.00016438,2]
[369631015,1751661039996,-460.0,0.00016438,2]
[369631016,1751661040005,-460.0,0.00016438,2]
[369631017,1751661040017,-569.14,0.00016438,2]
[369631018,1751661040027,-460.0,0.00016438,2]
[369631019,1751661040037,-460.0,0.00016438,2]
[369631020,1751661040046,-460.0,0.00016438,2]
[369631021,1751661040055,-460.0,0.00016438,2]
[369631022,1751661040066,-517.67,0.00016438,2]
[369631023,1751661040075,-460.0,0.00016438,2]
[369631024,1751661040086,-460.0,0.00016438,2]
[369631025,1751661040095,-460.0,0.00016438,2]
[369631026,1751661040105,-460.0,0.00016438,2]
[369631027,1751661040115,-460.0,0.00016438,2]
[369631028,1751661040124,-194.05631596,0.00016438,2]
[369631029,1751661040134,-460.0,0.00016438,2]
[369631030,1751661040144,-460.0,0.00016438,2]
[369631031,1751661040153,-460.0,0.00016438,2]
[369631032,1751661040162,-460.0,0.00016438,2]
[369631033,1751661040171,-460.0,0.00016438,2]
[369631034,1751661040181,-460.0,0.00016438,2]
[369631035,1751661040190,-460.0,0.00016438,2]
[369631036,1751661040199,-460.0,0.00016438,2]
[369631037,1751661040209,-460.0,0.00016438,2]
[369631038,1751661040218,-151.0,0.00016438,2]
[369631039,1751661040227,-151.0,0.00016438,2]
[369631040,1751661040236,-460.0,0.00016438,2]
[369631041,1751661040246,-460.0,0.00016438,2]
[369631042,1751661040255,-151.0,0.00016438,2]
[369631043,1751661040265,-460.0,0.00016438,2]
[369631044,1751661040274,-151.0,0.00016438,2]
[369631045,1751661040283,-151.0,0.00016438,2]
[369631046,1751661040292,-201.87891704,0.00016438,2]
[369631047,1751661040301,-151.0,0.00016438,2]
[369631048,1751661040310,-151.0,0.00016438,2]
[369631049,1751661040319,-151.0,0.00016438,2]
[369631050,1751661040328,-283.05621673,0.00016438,2]
[369631051,1751661040337,-460.0,0.00016438,2]
[369631052,1751661040346,-460.0,0.00016438,2]
[369631053,1751661040355,-460.0,0.00016438,2]
[369631054,1751661040365,-460.0,0.00016438,2]
[369631055,1751661040374,-460.0,0.00016438,2]
[369631056,1751661040383,-460.0,0.00016438,2]
[369631057,1751661040392,-460.0,0.00016438,2]
[369631058,1751661040402,-559.3,0.00016438,2]
[369631059,1751661040411,-460.0,0.00016438,2]
[369631060,1751661040420,-460.0,0.00016438,2]
[369631061,1751661040429,-460.0,0.00016438,2]
[369631062,1751661040438,-460.0,0.00016438,2]
[369631063,1751661040447,-460.0,0.00016438,2]
[369631064,1751661040457,-460.0,0.00016438,2]
[369631065,1751661040466,-6060.62857748,0.00016438,2]
[369631066,1751661040476,-151.0,0.00016465,2]
[369631067,1751661040486,-151.0,0.00016465,2]
[369631068,1751661040496,-151.0,0.00016465,2]
[369631069,1751661040505,-151.0,0.00016465,2]
[369631070,1751661040515,-151.0,0.00016465,2]
[369631071,1751661040524,-151.0,0.00016465,2]
[369631072,1751661040533,-198.0,0.00016493,2]
[369631073,1751661040543,-198.0,0.00016493,2]
[369631074,1751661040553,-198.0,0.00016493,2]
[369631075,1751661040562,-198.0,0.00016493,2]
[369631076,1751661040571,-198.0,0.00016493,2]
[369631077,1751661040580,-198.0,0.00016493,2]
[369631078,1751661040589,-500.0,0.00016711,2]
[369631079,1751661040598,-500.0,0.00016711,2]
[369631080,1751661040607,-500.0,0.00016711,2]
[369631081,1751661040616,-276.4682054,0.00016711,2]
[369631082,1751661040625,-500.0,0.00016711,2]
[369631083,1751661040634,-247.67051533,0.00016711,2]
[369631084,1751661040643,-500.0,0.00016711,2]
[369631085,1751661040653,-500.0,0.00016711,2]
[369631086,1751661040662,-641.93608554,0.00016711,2]
[369631087,1751661040671,-500.0,0.00016711,2]
[369631088,1751661040681,-297.12,0.00016712,2]
[369631089,1751661040690,-347.71,0.00016712,2]
[369631090,1751661040699,-343.96,0.00016712,2]
[369631091,1751661040708,-225.63,0.00016712,2]
[369631092,1751661040717,-460.0,0.00016712,2]
[369631093,1751661040727,-460.0,0.00016712,2]
[369631094,1751661040736,-472.44,0.00016712,2]
[369631095,1751661040746,-361.54,0.00016712,2]
[369631096,1751661040754,-431.31,0.00016712,2]
[369631097,1751661040765,-434.74,0.00016712,2]
[369631098,1751661040775,-460.0,0.00016712,2]
[369631099,1751661040784,-364.26,0.00016712,2]
[369631100,1751661040794,-460.0,0.00016712,2]
[369631101,1751661040803,-433.57,0.00016712,2]
[369631102,1751661040812,-568.28,0.00016712,2]
[369631103,1751661040822,-406.22,0.00016712,2]
[369631104,1751661040831,-421.57,0.00016712,2]
[369631105,1751661040841,-329.96,0.00016712,2]
[369631106,1751661040850,-306.66,0.00016712,2]
[369631107,1751661040860,-325.83,0.00016712,2]
[369631108,1751661040870,-267.17,0.00016712,2]
[369631109,1751661040879,-165.97,0.00016712,2]
[369631110,1751661040888,-460.0,0.00016712,2]
[369631111,1751661040897,-282.88,0.00016712,2]
[369631112,1751661040907,-326.99,0.00016712,2]
[369631113,1751661040915,-460.0,0.00016712,2]
[369631114,1751661040925,-605.86,0.00016712,2]
[369631115,1751661040934,-352.72,0.00016712,2]
[369631116,1751661040943,-460.0,0.00016712,2]
[369631117,1751661040952,-395.31,0.00016712,2]
[369631118,1751661040962,-429.64,0.00016712,2]
[369631119,1751661040971,-158.18,0.00016712,2]
[369631120,1751661040980,-186.99,0.00016712,2]
[369631121,1751661040989,-446.11,0.00016712,2]
[369631122,1751661040998,-386.89,0.00016712,2]
[369631123,1751661041008,-460.0,0.00016712,2]
[369631124,1751661041020,-460.0,0.00016712,2]
[369631125,1751661041029,-155.7,0.00016712,2]
[369631126,1751661041038,-325.83,0.00016712,2]
[369631127,1751661041048,-311.85,0.00016712,2]
[369631128,1751661041058,-460.0,0.00016712,2]
[369631129,1751661041068,-190.96,0.00016712,2]
[369631130,1751661041077,-257.54,0.00016712,2]
[369631131,1751661041087,-460.0,0.00016712,2]
[369631132,1751661041097,-420.0,0.00016886,2]
[369631133,1751661041106,-1353.27318713,0.000169,2]
[369631134,1751661041116,-460.0,0.00016986,2]
[369631136,1751661041126,-329.04,0.00016986,2]
[369631138,1751661041135,-375.62527131,0.00016986,2]
[369631141,1751661041151,-84.37472869,0.00016986,2]
[369631143,1751661041160,-598.75,0.00016986,2]
[369631145,1751661041170,-299.95,0.00016986,2]
[369631147,1751661041180,-422.3,0.00016986,2]
[369631149,1751661041189,-459.87,0.00016986,2]
[369631151,1751661041198,-451.02,0.00016986,2]
[369631153,1751661041207,-460.0,0.00016986,2]
[369631155,1751661041216,-460.0,0.00016986,2]
[369631157,1751661041226,-1353.27318711,0.00017176,2]
[369631159,1751661041235,-696.86386995,0.00017229,2]
[369631161,1751661041244,-369.09,0.0001726,2]
[369631163,1751661041254,-206.47,0.0001726,2]
[369631165,1751661041263,-368.87,0.0001726,2]
[369631167,1751661041272,-460.0,0.0001726,2]
[369631169,1751661041281,-230.40116161,0.00017308,2]
[369631171,1751661041291,-837.48520791,0.00017308,2]
[369631173,1751661041300,-524.86301716,0.00017308,2]
[369631175,1751661041309,-215.11345689,0.00017308,2]
[369631177,1751661041319,-847.91215827,0.00017308,2]
[369631179,1751661041328,-160.0,0.00017308,2]
[369631181,1751661041337,-1353.27318711,0.00017452,2]
[369631183,1751661041346,-315.32117966,0.00017477,2]
[369631185,1751661041355,-460.0,0.00017534,2]
[369631187,1751661041364,-358.85,0.000176,2]
[369631189,1751661041374,-1353.27318711,0.00017728,2]
[369631191,1751661041383,-169.166666,0.00017752,2]
[369631193,1751661041392,-460.0,0.00017808,2]
[369631195,1751661041401,-169.166666,0.00017945,2]
[369631197,1751661041411,-1353.27318711,0.00018003,2]
[369631199,1751661041420,-460.0,0.00018082,2]
[369631201,1751661041430,-696.86386995,0.00018119,2]
[369631203,1751661041440,-169.166666,0.00018138,2]
[369631205,1751661041449,-1353.27318711,0.00018279,2]
[369631219,1751661041576,-169.166666,0.00018331,2]
[369631221,1751661041587,-460.0,0.00018356,2]
[369631223,1751661041596,-110.37526624,0.00018402,2]
[369631226,1751661041609,-295.62473376,0.00018402,2]
[369631228,1751661041618,-207.4,0.00018443,2]
[369631230,1751661041627,-169.166666,0.00018524,2]
[369631232,1751661041637,-273.473923,0.00018555,2]
[369631234,1751661041646,-1353.27318711,0.00018555,2]
[369631236,1751661041656,-315.32117966,0.00018617,2]
[369631238,1751661041666,-39.77612031,0.0001863,2]
[369631244,1751661041715,-293.35208569,0.00016438,2]
[369631246,1751661041727,-420.22387969,0.0001863,2]
[369631248,1751661041736,-169.166666,0.00018717,2]
[369631250,1751661041745,-177.08872286,0.00018797,2]
[369631252,1751661041755,-1353.27318711,0.00018831,2]
[369631254,1751661041763,-474.16764867,0.00018904,2]
[369631256,1751661041773,-169.166666,0.0001891,2]
[369631258,1751661041783,-2290.595,0.00018933,2]
[369631260,1751661041792,-696.86386995,0.0001901,2]
[369631262,1751661041801,-169.166666,0.00019103,2]
[369631264,1751661041810,-1353.27318711,0.00019107,2]
[369631266,1751661041819,-503.517993,0.00019178,2]
[369631268,1751661041828,-666.0,0.00019178,2]
[369631270,1751661041838,-169.166666,0.00019296,2]
[369631272,1751661041847,-151.0,0.00019329,2]
[369631274,1751661041856,-151.0,0.00019329,2]
[369631276,1751661041866,-151.0,0.00019329,2]
[369631278,1751661041876,-201.116562,0.00019329,2]
[369631280,1751661041887,-201.116562,0.00019329,2]
[369631282,1751661041897,-151.0,0.00019329,2]
[369631284,1751661041906,-90962.08061659,0.00019329,2]
[369631286,1751661041918,-8551.04460018,0.00019329,2]
[369631452,1751661043419,-761.60007,0.00016274,2]
[369631455,1751661043433,-251.76400657,0.00016274,2]
[369631457,1751661043443,-486.87478323,0.00019329,2]
[369631459,1751661043452,-1353.27318711,0.00019383,2]
[369631460,1751661043462,-3512.05689767,0.000194,2]
[369631461,1751661043476,-679.17,0.000194,2]
[369631713,1751661192065,296.047692,0.00013699,2]
[369631724,1751662158861,181.71180909,0.00014831,2]
[369631731,1751662177418,985.6140352,0.00015,2]
[369631733,1751662179283,293.043942,0.00013699,2]
[369631789,1751662232640,-395.7325745,0.00015147,2]
[369631790,1751662232650,-300.0,0.00015289,2]
[369631791,1751662232659,-300.0,0.00015289,2]
[369631792,1751662232670,-368.1274285,0.0001529,2]
[369631819,1751662238672,-24531.8725715,0.0001529,2]
[369631820,1751662238683,-3859.4214973,0.00015575,2]
[369631821,1751662238692,-16797.7619271,0.00015575,2]
[369631822,1751662238702,-302.85301514,0.00015945,2]
[369631823,1751662238712,-500.0,0.00016437,2]
[369631824,1751662238721,-263.860003,0.00016437,2]
[369631825,1751662238731,-370.11502832,0.00016438,2]
[369631826,1751662238740,-460.0,0.00016438,2]
[369631827,1751662238749,-460.0,0.00016438,2]
[369631828,1751662238758,-430.89191656,0.00016438,2]
[369631829,1751662238767,-460.0,0.00016438,2]
[369631830,1751662238776,-460.0,0.00016438,2]
[369631831,1751662238786,-460.0,0.00016438,2]
[369631832,1751662238797,-460.0,0.00016438,2]
[369631833,1751662238806,-460.0,0.00016438,2]
[369631834,1751662238815,-460.0,0.00016438,2]
[369631835,1751662238824,-460.0,0.00016438,2]
[369631836,1751662238834,-460.0,0.00016438,2]
[369631837,1751662238843,-460.0,0.00016438,2]
[369631838,1751662238852,-434.74,0.00016438,2]
[369631839,1751662238861,-471.95955271,0.00016438,2]
[369631840,1751662238870,-460.0,0.00016438,2]
[369631841,1751662238880,-460.0,0.00016438,2]
[369631842,1751662238890,-460.0,0.00016438,2]
[369631843,1751662238899,-460.0,0.00016438,2]
[369631844,1751662238909,-398.59482959,0.00016438,2]
[369631845,1751662238918,-460.0,0.00016438,2]
[369631846,1751662238929,-460.0,0.00016438,2]
[369631847,1751662238938,-582.31,0.00016438,2]
[369631848,1751662238947,-486.1,0.00016438,2]
[369631849,1751662238957,-460.0,0.00016438,2]
[369631850,1751662238966,-460.0,0.00016438,2]
[369631851,1751662238975,-460.0,0.00016438,2]
[369631852,1751662238984,-225.63,0.00016438,2]
[369631853,1751662238993,-267.17,0.00016438,2]
[369631854,1751662239003,-460.0,0.00016438,2]
[369631855,1751662239012,-460.0,0.00016438,2]
[369631856,1751662239021,-460.0,0.00016438,2]
[369631857,1751662239030,-325.83,0.00016438,2]
[369631858,1751662239039,-472.44,0.00016438,2]
[369631859,1751662239049,-460.0,0.00016438,2]
[369631860,1751662239058,-158.18,0.00016438,2]
[369631861,1751662239067,-460.0,0.00016438,2]
[369631862,1751662239077,-431.31,0.00016438,2]
[369631863,1751662239086,-361.54,0.00016438,2]
[369631864,1751662239095,-311.85,0.00016438,2]
[369631865,1751662239104,-460.0,0.00016438,2]
[369631866,1751662239113,-460.0,0.00016438,2]
[369631867,1751662239122,-433.57,0.00016438,2]
[369631868,1751662239131,-406.22,0.00016438,2]
[369631869,1751662239141,-421.57,0.00016438,2]
[369631870,1751662239150,-568.28,0.00016438,2]
[369631871,1751662239159,-329.96,0.00016438,2]
[369631872,1751662239168,-297.12,0.00016438,2]
[369631873,1751662239179,-460.0,0.00016438,2]
[369631875,1751662239188,-460.0,0.00016438,2]
[369631877,1751662239197,-460.0,0.00016438,2]
[369631879,1751662239206,-347.71,0.00016438,2]
[369631880,1751662239216,-376.25232856,0.00016438,2]
[369631881,1751662239225,-460.0,0.00016438,2]
[369631882,1751662239234,-460.0,0.00016438,2]
[369631883,1751662239244,-460.0,0.00016438,2]
[369631884,1751662239254,-460.0,0.00016438,2]
[369631885,1751662239264,-605.86,0.00016438,2]
[369631886,1751662239273,-352.72,0.00016438,2]
[369631887,1751662239283,-446.11,0.00016438,2]
[369631888,1751662239292,-364.26,0.00016438,2]
[369631889,1751662239301,-386.89,0.00016438,2]
[369631890,1751662239310,-460.0,0.00016438,2]
[369631891,1751662239320,-306.66,0.00016438,2]
[369631892,1751662239330,-453.88832712,0.00016438,2]
[369631893,1751662239339,-460.0,0.00016438,2]
[369631894,1751662239348,-165.97,0.00016438,2]
[369631895,1751662239357,-155.7,0.00016438,2]
[369631896,1751662239367,-460.0,0.00016438,2]
[369631897,1751662239376,-460.0,0.00016438,2]
[369631898,1751662239386,-282.88,0.00016438,2]
[369631899,1751662239396,-460.0,0.00016438,2]
[369631900,1751662239405,-460.0,0.00016438,2]
[369631901,1751662239414,-460.0,0.00016438,2]
[369631902,1751662239423,-476.86,0.00016438,2]
[369631903,1751662239434,-460.0,0.00016438,2]
[369631904,1751662239444,-570.02374895,0.00016438,2]
[369631905,1751662239453,-460.0,0.00016438,2]
[369631906,1751662239462,-460.0,0.00016438,2]
[369631907,1751662239472,-460.0,0.00016438,2]
[369631908,1751662239481,-484.15,0.00016438,2]
[369631909,1751662239490,-326.99,0.00016438,2]
[369631910,1751662239500,-460.0,0.00016438,2]
[369631911,1751662239511,-460.0,0.00016438,2]
[369631912,1751662239520,-218.3567703,0.00016438,2]
[369631913,1751662239528,-395.31,0.00016438,2]
[369631914,1751662239537,-190.96,0.00016438,2]
[369631915,1751662239547,-257.54,0.00016438,2]
[369631916,1751662239556,-186.99,0.00016438,2]
[369631917,1751662239565,-429.64,0.00016438,2]
[369631918,1751662239575,-460.0,0.00016438,2]
[369631919,1751662239584,-460.0,0.00016438,2]
[369631920,1751662239596,-187.8141783,0.00016438,2]
[369631921,1751662239605,-460.0,0.00016438,2]
[369631922,1751662239614,-460.0,0.00016438,2]
[369631923,1751662239623,-460.0,0.00016438,2]
[369631924,1751662239634,-460.0,0.00016438,2]
[369631925,1751662239643,-460.0,0.00016438,2]
[369631926,1751662239652,-460.0,0.00016438,2]
[369631927,1751662239661,-460.0,0.00016438,2]